bitfinex/quotes_ETHUSD_20220201
["timestamp","ask_amount","ask_price","bid_price","bid_amount"]
[1643730855874,0.33795347,2761.6,2761.5,0.67443737]
[1643730856474,0.63795347,2761.6,2761.5,0.67443737]
[1643730856773,0.67493746,2761.6,2761.5,0.67443737]
[1643730856972,0.67493746,2761.6,2761.4,0.67443737]
[1643730857600,0.67493746,2761.6,2761.3,0.67443737]
[1643730857800,0.90956124,2761.4,2761.3,0.67443737]
[1643730858199,0.33184471,2761.4,2761.3,0.67443737]
[1643730858401,0.63795347,2761.6,2761.3,0.67443737]
[1643730858603,0.67005128,2761.6,2761.3,0.67443737]
[1643730859001,0.67005128,2761.6,2761.4,0.67443737]
[1643730859202,0.67005128,2761.6,2761.5,0.40713877]
[1643730859404,0.67005128,2761.6,2761.4,0.67443737]
[1643730859801,6.99260528,2761.6,2761.4,0.67443737]
[1643730860002,6.99260528,2761.6,2761.3,1.30638859]
[1643730860202,6.99260528,2761.6,2761.5,0.67481674]
[1643730860402,6.99260528,2761.6,2761.5,0.40713877]
[1643730860805,7.67928552,2761.6,2761.5,0.40713877]
[1643730861453,7.67928552,2761.6,2761.4,0.67481674]
[1643730861651,7.67928552,2761.6,2761.1,0.89924982]
[1643730861652,10.39553552,2761.6,2761.1,0.89924982]
[1643730861856,0.00458928,2761.5,2761.1,0.89924982]
[1643730862059,1.8108,2761.4,2761.1,0.89924982]
[1643730862256,3.05443953,2761.4,2761.2,0.89924982]
[1643730862457,3.05443953,2761.4,2761.1,1.89924982]
[1643730863058,0.90538,2761.3,2761.1,1.89924982]
[1643730863260,0.90538,2761.3,2761.2,0.89924982]
[1643730863458,0.90538,2761.3,2761.1,1.0]
[1643730863459,0.22416461,2761.3,2761.1,1.9053]
[1643730863658,0.22416461,2761.3,2761.2,0.89913919]
[1643730864360,0.22416461,2761.3,2761.2,1.34887473]
[1643730864566,0.55613108,2761.3,2761.2,1.34887473]
[1643730865006,50.0,2761.5,2761.2,2.59704347]
[1643730865205,50.0,2761.5,2761.4,6.83111]
[1643730865206,47.4901,2761.5,2761.4,6.83111]
[1643730865404,44.23080437,2761.5,2761.4,18.76483214]
[1643730865604,44.23080437,2761.5,2761.4,18.08436903]
[1643730865804,44.23080437,2761.5,2761.4,19.00544895]
[1643730866010,44.23080437,2761.5,2761.4,20.35374834]
[1643730866208,43.76360437,2761.5,2761.4,18.08436903]
[1643730866411,5.97833823,2761.6,2761.4,24.85618364]
[1643730866615,5.97833823,2761.6,2761.5,10.36662298]
[1643730866810,5.97833823,2761.6,2761.5,19.22413298]
[1643730867010,6.823e-05,2761.6,2761.5,19.22413298]
[1643730867210,1.81002,2762.3,2761.7,0.67607821]
[1643730867411,1.8098,2762.4,2762.3,0.90485]
[1643730867610,1.8098,2762.4,2762.3,1.56803407]
[1643730867611,1.35655325,2762.4,2762.3,1.56803407]
[1643730867812,1.35655325,2762.4,2762.3,3.00203407]
[1643730868012,1.35655325,2762.4,2762.3,2.09718407]
[1643730868013,1.65655325,2762.4,2762.3,2.09718407]
[1643730868312,1.65655325,2762.4,2762.3,1.09718407]
[1643730868313,1.69559738,2762.4,2762.3,1.09718407]
[1643730868513,1.69559738,2762.4,2762.3,0.66318407]
[1643730868943,1.69559738,2762.4,2762.3,1.18418407]
[1643730869554,1.69559738,2762.4,2761.8,7.2417]
[1643730869752,2.71577,2762.2,2761.8,7.2417]
[1643730869949,4.16307681,2762.2,2761.8,7.2417]
[1643730870248,0.90529,2762.1,2761.8,7.2417]
[1643730870450,0.32116485,2762.0,2761.8,7.2417]
[1643730870647,0.32116485,2762.0,2761.4,0.90034051]
[1643730870858,1.0,2761.8,2761.2,0.90034051]
[1643730871049,1.81099,2761.6,2761.1,0.90034051]
[1643730871249,1.81099,2761.6,2760.8,1.35051077]
[1643730871452,1.8110543,2761.5,2760.8,1.35051077]
[1643730871652,0.90554,2761.3,2760.8,1.35051077]
[1643730871848,0.42876221,2761.1,2760.8,1.35051077]
[1643730872047,0.42876221,2761.1,2760.7,2.87151077]
[1643730872048,0.72876221,2761.1,2760.7,2.87151077]
[1643730872250,2.87240665,2761.1,2760.7,1.35051077]
[1643730872701,3.77792665,2761.1,2760.7,1.35051077]
[1643730873103,5.58895725,2761.1,2760.7,1.35051077]
[1643730873503,0.74857087,2761.0,2760.6,1.49533777]
[1643730873704,0.74857087,2761.0,2760.9,0.67490149]
[1643730874207,2.717,2760.9,2760.2,1.0]
[1643730874403,0.90568,2760.7,2760.2,1.0]
[1643730874603,0.90568,2760.7,2760.1,2.31554657]
[1643730874604,0.37897136,2760.4,2760.1,2.31554657]
[1643730874804,0.67897136,2760.4,2760.1,2.31554657]
[1643730875004,0.71405599,2760.4,2760.1,2.31554657]
[1643730875204,0.71405599,2760.4,2760.1,1.59119383]
[1643730875804,1.61833563,2760.4,2760.1,1.59119383]
[1643730876006,2.52400563,2760.4,2760.1,1.59119383]
[1643730876881,2.52400563,2760.4,2760.0,1.18111]
[1643730878482,0.07826356,2760.4,2760.0,1.18111]
[1643730879082,0.98393356,2760.4,2760.0,1.18111]
[1643730879682,0.90567,2760.4,2760.0,1.18111]
[1643730879886,1.81134,2760.4,2760.2,1.77181461]
[1643730880099,1.81134,2760.4,2760.3,0.98689923]
[1643730880300,0.50361893,2760.4,2760.3,2.59925073]
[1643730880902,1.40928893,2760.4,2760.3,1.59925073]
[1643730881105,1.40928893,2760.4,2760.3,2.59925073]
[1643730881304,1.70928893,2760.4,2760.3,2.59925073]
[1643730881504,1.70928893,2760.4,2760.3,0.89376161]
[1643730881705,1.70928893,2760.4,2760.3,1.89376161]
[1643730882009,1.70928893,2760.4,2760.3,0.89376161]
[1643730882203,1.70928893,2760.4,2760.3,2.24328478]
[1643730882606,1.70928893,2760.4,2760.3,2.06217478]
[1643730882807,1.70928893,2760.4,2760.3,2.24328478]
[1643730883010,1.70928893,2760.4,2760.3,0.89376161]
[1643730883413,1.70928893,2760.4,2760.3,3.07806195]
[1643730883609,1.20567,2760.4,2760.3,4.07806195]
[1643730883844,1.20567,2760.4,2760.3,10.9241025]
[1643730884855,0.3,2760.4,2760.3,9.15228789]
[1643730885255,0.3,2760.4,2760.3,10.95102703]
[1643730885453,0.3,2760.4,2760.3,9.15228789]
[1643730885754,0.3,2760.4,2760.3,9.06093639]
[1643730886155,1.81076,2760.7,2760.3,9.06093639]
[1643730886353,1.81076,2760.7,2760.6,1.34880705]
[1643730886553,1.81076,2760.7,2760.6,2.15121716]
[1643730886756,1.81076,2760.7,2760.6,3.15121716]
[1643730886954,1.81076,2760.7,2760.6,2.15121716]
[1643730887161,1.81076,2760.7,2760.6,3.15121716]
[1643730887354,2.11076,2760.7,2760.6,3.15121716]
[1643730889818,0.48048069,2760.7,2760.6,3.15121716]
[1643730890015,0.47939242,2760.7,2760.6,3.15121716]
[1643730890620,0.47939242,2760.7,2760.6,1.97010716]
[1643730890816,1.38474242,2760.7,2760.6,0.62130011]
[1643730891017,1.38474242,2760.7,2760.6,1.97010716]
[1643730891238,1.38474242,2760.7,2760.6,2.15121716]
[1643730891444,1.38474242,2760.7,2760.6,0.62130011]
[1643730892244,1.38474242,2760.7,2760.6,2.15121716]
[1643730892450,1.38474242,2760.7,2760.6,3.15121716]
[1643730893550,0.75000918,2760.9,2760.6,3.05091705]
[1643730893851,0.75000918,2760.9,2760.7,0.98183921]
[1643730894049,0.75000918,2760.9,2760.8,0.07641921]
[1643730894453,0.75000918,2760.9,2760.8,0.77852921]
[1643730894650,0.75000918,2760.9,2760.8,3.86127666]
[1643730894850,0.75000918,2760.9,2760.8,3.12733112]
[1643730895502,1.81075,2761.1,2760.8,3.12733112]
[1643730895702,1.81075,2761.1,2761.0,1.52991705]
[1643730895902,2.7156,2761.4,2761.0,9.0374691]
[1643730896103,2.7156,2761.4,2761.2,1.34754316]
[1643730896301,0.90518,2761.4,2761.3,0.77852407]
[1643730896503,0.90518,2761.4,2761.3,0.87026205]
[1643730896703,0.90518,2761.4,2761.3,2.19812918]
[1643730896901,0.90518,2761.4,2761.3,2.27478061]
[1643730897306,0.90518,2761.4,2761.3,1.49596644]
[1643730897708,0.90518,2761.4,2761.3,1.67707644]
[1643730898004,0.90518,2761.4,2761.3,0.59741407]
[1643730898204,0.90518,2761.4,2761.3,1.49614686]
[1643730898605,0.90518,2761.4,2761.3,1.67725686]
[1643730898848,0.90518,2761.4,2761.3,0.521]
[1643730899051,1.20518,2761.4,2761.3,0.521]
[1643730899351,1.20518,2761.4,2761.3,0.70211]
[1643730899550,1.20518,2761.4,2761.3,1.69258077]
[1643730900355,1.20518,2761.4,2761.3,0.521]
[1643730901053,1.50518,2761.4,2761.3,0.521]
[1643730901251,1.92247558,2761.4,2761.3,0.521]
[1643730901653,0.76759604,2761.2,2761.1,1.9051]
[1643730901852,0.76759604,2761.2,2761.1,0.9051]
[1643730902053,1.06759604,2761.2,2760.8,1.07984279]
[1643730902254,1.97304604,2761.2,2760.8,1.07984279]
[1643730902504,1.97304604,2761.2,2760.8,0.18111]
[1643730902704,1.97304604,2761.2,2760.8,1.07984279]
[1643730903105,2.11088,2761.2,2760.9,0.90545]
[1643730903305,2.11088,2761.2,2761.0,0.89873279]
[1643730903507,2.11088,2761.2,2761.0,1.41973279]
[1643730903705,1.81088,2761.2,2761.0,2.33162]
[1643730903908,5.84997558,2761.4,2761.1,0.28573117]
[1643730903909,1.45676334,2761.4,2761.1,0.28573117]
[1643730904107,0.25,2762.3,2761.3,7.87849687]
[1643730904308,0.25,2762.3,2761.4,2.87049061]
[1643730904309,0.24888843,2762.3,2761.4,2.87049061]
[1643730904506,0.90492,2761.9,2761.5,1.35815612]
[1643730904807,0.41098496,2761.7,2761.6,0.521]
[1643730905010,0.41098496,2761.7,2761.6,0.70211]
[1643730905210,0.90492,2761.9,2761.6,0.70211]
[1643730905619,1.80989,2762.0,2761.8,0.18111]
[1643730905813,2.71496,2762.0,2761.9,0.521]
[1643730906013,2.71496,2762.0,2761.9,0.61273798]
[1643730906014,0.90507,2762.0,2761.9,0.61273798]
[1643730906457,4.9158,2763.1,2761.9,0.61273798]
[1643730906458,0.0028984,2763.3,2762.7,0.84436974]
[1643730906658,1.8120684,2763.3,2762.9,0.90461]
[1643730906856,1.8120684,2763.3,2763.0,1.092]
[1643730907054,1.80917,2763.3,2763.0,1.613]
[1643730907254,1.80917,2763.3,2763.0,2.613]
[1643730907456,1.80917,2763.2,2763.0,2.613]
[1643730907658,1.80888,2763.8,2763.2,1.092]
[1643730907862,16.2240984,2764.6,2763.5,0.00843682]
[1643730908062,1.52732491,2764.5,2764.2,1.092]
[1643730908256,1.3255538,2764.7,2764.2,1.613]
[1643730908455,0.04547388,2764.4,2764.2,1.62055299]
[1643730908656,0.04547388,2764.4,2764.2,1.613]
[1643730908657,0.37546003,2764.4,2764.2,1.613]
[1643730908956,0.04490545,2764.3,2764.2,2.51726]
[1643730909258,0.04490545,2764.3,2764.2,3.51726]
[1643730909455,0.04490545,2764.3,2764.2,2.51726]
[1643730909856,0.04490545,2764.3,2764.2,3.51726]
[1643730910101,1.80858,2764.6,2764.2,3.51726]
[1643730910406,0.90429,2764.6,2764.4,1.10050006]
[1643730910612,0.90429,2764.6,2764.5,1.613]
[1643730910902,0.90429,2764.6,2764.5,8.8476]
[1643730911703,1.20429,2764.6,2764.5,9.8476]
[1643730912106,1.50429,2764.6,2764.5,9.8476]
[1643730912305,1.50429,2764.6,2764.5,8.8476]
[1643730912506,1.50429,2764.6,2764.5,8.3266]
[1643730912507,0.6,2764.6,2764.5,8.3266]
[1643730912907,0.6,2764.6,2764.5,3.72234777]
[1643730913113,1.80883,2764.5,2764.0,0.521]
[1643730913311,0.3,2764.3,2764.1,0.90432]
[1643730913507,1.20428,2764.3,2764.1,0.90432]
[1643730913758,1.50428,2764.3,2764.1,0.90432]
[1643730913963,1.9448027,2764.3,2764.1,0.90432]
[1643730914362,1.6448027,2764.3,2764.1,0.90432]
[1643730914761,3.7536327,2764.3,2763.8,2.24266]
[1643730915061,1.80896,2764.1,2763.8,2.24266]
[1643730915261,2.40896,2764.1,2763.8,2.24266]
[1643730915464,2.40896,2764.1,2763.8,0.434]
[1643730915667,2.40896,2764.1,2763.2,3.61665]
[1643730915668,4.21795,2764.1,2763.2,3.61665]
[1643730916361,0.41215068,2763.5,2763.2,3.61665]
[1643730916563,0.90462,2763.4,2763.2,3.61665]
[1643730916763,0.3,2763.4,2763.2,3.61665]
[1643730917061,0.3,2763.4,2763.2,3.51665]
[1643730917708,0.3,2763.4,2763.3,1.0]
[1643730918809,0.29889105,2763.4,2763.3,1.0]
[1643730919410,0.30460363,2763.4,2762.9,0.18111]
[1643730919609,0.29889105,2763.4,2762.9,0.18111]
[1643730920011,0.29889105,2763.4,2762.9,0.13111]
[1643730920417,0.29889105,2763.4,2763.0,0.43911912]
[1643730920615,0.16962179,2763.4,2763.2,0.91548419]
[1643730920822,0.16962179,2763.4,2763.2,1.34948419]
[1643730921013,0.16962179,2763.4,2763.2,2.44122217]
[1643730921246,0.16962179,2763.4,2763.2,3.35217754]
[1643730921451,0.90459,2763.5,2763.3,0.13111]
[1643730921651,0.90459,2763.5,2763.3,1.13111]
[1643730922053,0.3,2763.4,2763.3,1.13111]
[1643730922253,0.3,2763.4,2763.3,0.13111]
[1643730922655,0.3,2763.4,2763.2,2.43015798]
[1643730922858,0.3,2763.4,2763.2,0.99615798]
[1643730923057,0.3,2763.4,2763.2,0.90442]
[1643730924259,0.25927154,2763.4,2763.2,0.90442]
[1643730924856,0.25927154,2763.4,2763.2,0.89382555]
[1643730925109,0.90459,2763.5,2763.2,0.89382555]
[1643730925509,0.90459,2763.5,2763.2,0.90852675]
[1643730925731,0.85459,2763.5,2763.2,0.90852675]
[1643730926312,0.3,2763.4,2763.2,0.89382555]
[1643730926711,0.3,2763.4,2763.2,0.90141071]
[1643730927212,0.3,2763.4,2763.2,0.89382555]
[1643730927815,0.85459,2763.5,2763.3,0.13111]
[1643730928016,0.90452,2763.9,2763.3,0.13111]
[1643730928017,0.90435,2763.9,2763.4,0.434]
[1643730928215,1.8087,2764.2,2763.7,0.9227465]
[1643730928413,1.8087,2764.2,2763.8,0.56511]
[1643730928862,1.8087,2764.2,2763.9,0.00559023]
[1643730929160,0.3,2764.1,2763.9,0.434]
[1643730929360,1.8087,2764.2,2763.9,0.434]
[1643730929959,1.8087,2764.2,2764.0,0.93987992]
[1643730930761,0.3,2764.1,2764.0,0.93987992]
[1643730931064,0.3,2764.1,2763.7,2.03539]
[1643730931065,0.3,2764.1,2763.7,0.90428]
[1643730931267,0.30821754,2764.1,2763.6,1.80856]
[1643730931463,0.3,2764.1,2763.6,1.80856]
[1643730931963,0.41192042,2764.0,2763.6,1.80856]
[1643730932163,0.90454,2764.0,2763.6,1.80856]
[1643730932362,1.80888,2763.9,2763.6,1.80856]
[1643730932607,2.10888,2763.9,2763.6,1.80856]
[1643730933208,2.51721056,2763.9,2763.6,1.80856]
[1643730934710,2.10778925,2763.9,2763.6,1.80856]
[1643730935713,2.5326578,2763.9,2763.6,1.80856]
[1643730936862,2.10778925,2763.9,2763.6,1.80856]
[1643730938066,0.44089865,2763.8,2763.6,1.80856]
[1643730938462,2.10778925,2763.9,2763.6,1.80856]
[1643730939996,2.10778925,2763.9,2763.5,1.0]
[1643730940196,2.10778925,2763.9,2763.4,1.80892]
[1643730940404,0.90442,2763.8,2763.4,2.55028883]
[1643730940602,0.90442,2763.8,2763.4,1.80892]
[1643730940900,0.3,2763.7,2763.4,1.80892]
[1643730941104,0.3,2763.7,2763.6,1.80856]
[1643730941306,0.196297,2763.8,2763.4,1.80892]
[1643730941810,0.496297,2763.8,2763.4,1.80892]
[1643730942909,0.196297,2763.8,2763.5,0.0079709]
[1643730943315,0.196297,2763.8,2763.4,1.80892]
[1643730944952,2.88460452,2763.8,2763.4,1.80892]
[1643730945155,0.00984786,2763.7,2763.1,7.238]
[1643730945752,1.18460452,2763.8,2763.1,7.238]
[1643730945951,0.39997707,2763.5,2763.1,7.238]
[1643730946153,1.30469707,2763.5,2763.1,7.238]
[1643730946562,0.3,2763.4,2763.1,7.238]
[1643730947507,0.66791175,2763.4,2763.1,7.238]
[1643730948105,0.90472,2763.5,2763.1,7.38138608]
[1643730948312,0.51452554,2763.5,2763.4,0.8939383]
[1643730948508,19.64155,2764.6,2763.4,1.4630993]
[1643730948509,0.9043,2763.9,2763.4,1.4630993]
[1643730948708,0.90307585,2763.9,2763.5,0.8979893]
[1643730948909,0.90307585,2763.9,2763.6,0.56511]
[1643730949110,0.90307585,2763.9,2763.7,0.434]
[1643730949414,0.90307585,2763.9,2763.7,1.3384]
[1643730949815,16.92781,2764.6,2763.8,2.0]
[1643730949816,11.05811,2764.6,2763.8,2.0]
[1643730950013,0.5762148,2764.7,2763.9,1.3319893]
[1643730950212,0.5762148,2764.7,2764.0,8.2649993]
[1643730950412,0.90409,2764.6,2764.1,7.24636558]
[1643730950613,0.90409,2764.6,2764.2,8.1333893]
[1643730950813,0.5762148,2764.7,2764.5,1.30723034]
[1643730951117,0.00289621,2765.7,2764.5,1.30723034]
[1643730951118,0.00289621,2765.8,2765.0,0.75117994]
[1643730951367,0.68343465,2766.5,2765.2,0.75117994]
[1643730951368,9.88926871,2766.2,2765.2,0.75117994]
[1643730951567,15.131,2766.7,2765.1,7.667]
[1643730951568,0.9037,2765.8,2765.6,0.75117994]
[1643730951765,3.3338325,2766.1,2765.6,0.75117994]
[1643730951766,1.80746,2766.1,2765.6,0.75117994]
[1643730952073,1.90456844,2766.0,2765.6,0.75117994]
[1643730952265,1.52639603,2765.9,2765.7,0.75117994]
[1643730952665,0.37817241,2766.0,2765.7,0.75117994]
[1643730952867,1.80746,2766.1,2765.7,1.65497994]
[1643730953270,0.90371,2766.2,2765.7,1.7927443]
[1643730953468,0.90371,2766.2,2765.9,0.75117994]
[1643730953671,0.90371,2766.2,2766.1,0.75117994]
[1643730953870,0.90371,2766.2,2766.1,1.18517994]
[1643730954469,0.90371,2766.2,2766.1,0.75117994]
[1643730955111,4.01024148,2766.8,2766.7,2.76286994]
[1643730955318,2.42783236,2766.8,2766.7,1.13485801]
[1643730955513,1.52626118,2766.8,2766.7,1.13485801]
[1643730955917,1.52626118,2766.8,2766.7,3.04781801]
[1643730956719,1.52611326,2766.8,2766.7,3.04781801]
[1643730957520,2.52611326,2766.8,2766.7,3.04781801]
[1643730957827,6.64300144,2766.7,2766.6,1.70956]
[1643730958019,8.1691147,2766.7,2766.3,0.25]
[1643730958220,1.38818048,2766.5,2766.2,0.90401]
[1643730958418,0.18113,2766.3,2765.8,3.81781]
[1643730958620,0.18113,2766.6,2766.0,0.90402]
[1643730958860,0.18192106,2767.0,2766.1,0.20351]
[1643730959059,0.18192106,2767.0,2766.2,1.80747]
[1643730959060,1.47612309,2766.9,2766.2,1.80747]
[1643730959262,0.00122106,2767.0,2766.2,3.6152]
[1643730959460,1.0,2766.4,2766.2,3.6152]
[1643730959659,0.18113,2766.5,2766.2,3.6152]
[1643730959865,0.18113,2766.3,2766.2,3.6152]
[1643730960265,0.57846018,2766.6,2766.2,3.3737]
[1643730960468,1.18113,2766.3,2766.0,1.80773]
[1643730960662,1.18113,2766.3,2765.6,3.61579]
[1643730960663,7.65,2766.1,2765.6,3.61579]
[1643730960864,0.36237964,2765.7,2765.4,2.71193]
[1643730961262,0.54350964,2765.7,2765.4,2.71193]
[1643730961465,1.0,2765.6,2765.5,0.90423]
[1643730961865,1.24023013,2765.7,2765.5,0.90423]
[1643730962063,0.54350964,2765.7,2765.5,0.90423]
[1643730962279,0.18113,2765.7,2765.5,0.90181649]
[1643730962533,0.434,2766.2,2765.5,0.90181649]
[1643730962534,0.18113,2766.0,2765.5,0.90181649]
[1643730963135,3.4191,2766.6,2765.8,1.14273659]
[1643730963334,1.33293,2766.8,2766.1,1.81803378]
[1643730963532,1.33293,2766.8,2766.1,1.80762]
[1643730963533,0.18113,2766.8,2766.1,1.80762]
[1643730964531,0.32303616,2766.2,2766.1,1.80762]
[1643730964733,1.0,2766.4,2766.1,1.80762]
[1643730964932,0.00122106,2767.0,2766.1,1.80762]
[1643730964933,0.18113,2766.8,2766.1,1.80762]
[1643730965140,0.18113,2766.8,2766.2,0.20351]
[1643730965339,0.00122106,2767.0,2766.2,0.51638929]
[1643730965738,0.00122106,2767.0,2766.2,0.50351]
[1643730966034,0.00122106,2767.0,2766.6,0.79421069]
[1643730966255,0.00122106,2767.0,2766.7,0.90372]
[1643730966656,0.00122106,2767.0,2766.6,1.10718]
[1643730967259,0.00122106,2767.0,2766.6,0.90367]
[1643730967459,0.51999461,2766.9,2766.6,0.90367]
[1643730967664,0.18113,2766.7,2766.5,1.80733]
[1643730968060,1.0,2766.6,2766.5,1.80733]
[1643730968261,1.0,2766.6,2765.8,0.5967]
[1643730968459,1.18113,2766.5,2765.8,0.3467]
[1643730968661,0.18113,2766.5,2766.0,1.80799]
[1643730968862,0.18113,2766.7,2766.1,0.20351]
[1643730969263,0.00122106,2767.0,2766.2,0.00509077]
[1643730969463,0.00122106,2767.0,2766.1,0.20351]
[1643730969464,0.00122106,2767.0,2766.1,0.50351]
[1643730969662,0.00122106,2767.0,2766.6,0.32828173]
[1643730969862,0.00122106,2767.0,2766.6,1.80734]
[1643730970310,0.00122106,2767.0,2766.6,2.01085]
[1643730971408,0.00122106,2767.0,2766.9,0.20351]
[1643730972310,1.2137,2767.7,2767.3,0.77805472]
[1643730972507,3.41323982,2768.1,2767.3,2.18505472]
[1643730972705,3.41323982,2768.1,2767.3,2.48505472]
[1643730972706,3.2196,2768.1,2767.3,2.48505472]
[1643730972910,1.0987474,2768.3,2767.5,1.8067591]
[1643730973106,1.0987474,2768.3,2767.5,2.1067591]
[1643730973306,1.0987474,2768.3,2767.5,2.4067591]
[1643730973506,1.0987474,2768.3,2767.9,0.87763788]
[1643730973762,1.0987474,2768.3,2768.0,0.80351]
[1643730973964,0.18113,2768.9,2768.0,1.91801]
[1643730974163,0.18113,2768.9,2768.1,0.00629498]
[1643730974368,0.40693689,2769.2,2768.8,0.3680779]
[1643730974568,1.93073465,2769.7,2768.7,0.20351]
[1643730974766,1.93073465,2769.7,2769.0,0.20351]
[1643730974767,1.2473,2769.7,2769.0,0.20351]
[1643730974968,0.75126789,2769.8,2769.0,0.20351]
[1643730975170,6.322554,2769.9,2769.0,0.20351]
[1643730975366,6.322554,2769.9,2768.9,0.3]
[1643730975572,6.322554,2769.9,2769.0,0.80850006]
[1643730975768,6.322554,2769.9,2769.1,1.80584]
[1643730975967,0.49149993,2769.4,2769.2,1.80572]
[1643730976169,6.372064,2769.9,2769.2,1.80572]
[1643730976170,0.01231552,2769.7,2769.2,1.80572]
[1643730976867,0.04951,2769.8,2769.2,2.70862]
[1643730977067,0.49149993,2769.5,2769.2,2.70862]
[1643730977268,0.04951,2769.3,2768.9,1.806]
[1643730977509,0.49149993,2769.5,2768.9,1.806]
[1643730977713,0.04951,2769.6,2768.9,2.70905]
[1643730977909,0.49149993,2769.5,2768.9,2.70905]
[1643730978121,0.04951,2769.6,2769.0,0.3]
[1643730978314,6.74174971,2769.9,2769.0,0.3]
[1643730978722,0.04951,2769.8,2768.9,1.806]
[1643730978918,0.49149993,2769.1,2768.4,0.25]
[1643730979215,0.49149993,2769.1,2768.2,0.90329]
[1643730979216,0.04951,2769.0,2768.2,0.90329]
[1643730979615,0.31682693,2768.6,2768.2,0.90329]
[1643730979819,0.36633693,2768.6,2768.0,1.80659]
[1643730980121,0.04951,2769.1,2768.2,0.90319]
[1643730980725,0.04951,2769.1,2768.0,1.80659]
[1643730980917,0.40580604,2768.6,2768.0,1.80659]
[1643730981117,0.04951,2769.1,2768.0,1.80659]
[1643730981118,21.71149993,2768.8,2768.0,1.80659]
[1643730981682,0.54100993,2768.7,2768.0,1.80659]
[1643730981881,21.22,2768.6,2768.0,1.80659]
[1643730982079,0.49149993,2768.2,2767.7,0.9035]
[1643730982281,21.26951,2768.3,2767.4,3.61224]
[1643730982489,21.26951,2768.3,2766.7,3.94078576]
[1643730982490,0.87049172,2767.5,2766.7,3.94078576]
[1643730982686,21.22,2767.4,2766.9,0.25]
[1643730982885,0.01242066,2768.0,2766.7,3.94078576]
[1643730982886,21.71149993,2767.7,2766.7,3.94078576]
[1643730983087,0.54100993,2767.9,2766.9,0.90367]
[1643730983289,0.04951,2767.9,2767.2,2.31545006]
[1643730983682,0.04951,2767.9,2767.2,2.40695]
[1643730983883,0.54100993,2767.9,2767.2,1.80695]
[1643730984484,0.04951,2767.9,2767.2,1.80695]
[1643730984883,0.04951,2767.9,2767.2,2.23098439]
[1643730985103,0.04951,2767.9,2767.2,2.53098439]
[1643730985304,0.04951,2767.9,2767.2,2.83098439]
[1643730985503,0.04951,2767.9,2767.2,2.10695]
[1643730985704,0.04951,2767.9,2767.2,2.40695]
[1643730986309,0.04951,2767.9,2767.3,1.80702]
[1643730986509,0.04951,2767.9,2767.3,3.61399]
[1643730987010,0.04951,2767.9,2767.8,0.76123535]
[1643730987214,0.04951,2767.9,2767.8,1.50615365]
[1643730987413,0.04951,2767.9,2767.3,2.10702]
[1643730987613,0.04951,2767.9,2767.3,1.80702]
[1643730987614,0.54100993,2767.9,2767.3,1.80702]
[1643730987814,0.49149993,2767.5,2767.3,1.80702]
[1643730988013,0.04951,2767.9,2766.9,2.05723]
[1643730988014,2.0,2767.9,2766.9,2.05723]
[1643730988212,0.49149993,2767.9,2766.9,2.05723]
[1643730988418,0.54100993,2768.1,2766.9,2.05723]
[1643730988753,0.54100993,2768.1,2766.9,2.35723]
[1643730989154,21.22,2768.0,2766.9,2.35723]
[1643730989354,2.09975216,2767.9,2766.9,2.35723]
[1643730989554,2.09975216,2767.9,2767.1,0.90357]
[1643730989555,0.32310651,2767.7,2767.1,0.90357]
[1643730989755,2.06486704,2767.6,2767.2,0.90362]
[1643730989956,2.65872682,2767.6,2767.2,0.90362]
[1643730990156,23.87872682,2767.6,2767.2,0.90362]
[1643730990556,23.87872682,2767.6,2766.9,2.05723]
[1643730990759,2.65872682,2767.6,2767.0,0.90366]
[1643730990961,2.16722689,2767.6,2766.9,1.80723]
[1643730991560,0.54100993,2767.7,2766.9,1.80723]
[1643730991759,2.11157024,2767.6,2766.9,1.80723]
[1643730991960,0.54100993,2767.7,2766.9,1.80723]
[1643730991961,0.04951,2767.7,2766.9,1.80723]
[1643730992161,0.04951,2767.7,2767.1,1.80729]
[1643730992360,0.04951,2767.7,2767.5,0.74900119]
[1643730992617,1.78323264,2768.7,2767.5,0.74900119]
[1643730992618,0.04951,2768.3,2767.5,1.04900119]
[1643730992820,0.04951,2768.6,2767.5,1.04900119]
[1643730993018,1.52513706,2768.5,2767.5,1.04900119]
[1643730993223,21.26951,2768.6,2767.7,0.32198629]
[1643730993819,21.26951,2768.6,2768.0,0.81845306]
[1643730993820,1.52512782,2768.5,2768.0,0.81845306]
[1643730994018,22.74512782,2768.5,2768.0,0.81845306]
[1643730994220,22.74512782,2768.5,2767.8,2.71021]
[1643730994221,21.22,2768.5,2767.8,2.71021]
[1643730994522,21.22,2768.5,2768.0,0.9034]
[1643730995121,1.52512375,2768.4,2768.0,0.9034]
[1643730995323,0.04951,2768.4,2768.0,0.03642393]
[1643730995523,0.04951,2768.4,2767.9,0.3]
[1643730995721,21.22,2768.5,2767.9,0.3]
[1643730995920,21.22,2768.5,2767.8,2.71021]
[1643730996123,21.22,2768.5,2767.9,0.3]
[1643730996565,0.49149993,2768.1,2768.0,0.9034]
[1643730996765,0.49149993,2768.1,2767.3,1.8068]
[1643730996766,0.54100993,2768.1,2767.3,1.8068]
[1643730996967,0.04951,2768.1,2767.3,1.8068]
[1643730997367,21.22,2768.5,2767.7,0.90343]
[1643730997766,21.22,2768.5,2767.9,0.79323464]
[1643730997969,0.04951,2768.6,2767.9,0.79323464]
[1643730998168,0.04951,2768.6,2768.2,0.32644876]
[1643730998467,0.04951,2768.8,2768.2,0.90322]
[1643730998771,1.51817877,2768.7,2768.2,1.20322]
[1643730999367,0.04951,2768.6,2768.2,0.90322]
[1643730999772,0.04951,2768.8,2768.2,2.10645]
[1643731000012,1.52505635,2768.7,2768.2,1.20323]
[1643731000215,21.22,2768.6,2768.2,0.90323]
[1643731000421,21.26951,2768.6,2768.2,1.20323]
[1643731000615,1.52508275,2768.5,2768.2,0.90323]
[1643731000815,22.74508275,2768.5,2768.2,0.90323]
[1643731001016,21.22,2768.5,2768.2,0.90323]
[1643731001218,0.04951,2768.6,2768.2,0.90323]
[1643731001419,1.52509349,2768.5,2768.2,0.90323]
[1643731001816,0.04951,2768.3,2768.2,0.90323]